[Event "*** MasterClass Titled Tuesday Blitz"]
[Site "Chess.com"]
[Date "2017.12.05"]
[Round "8"]
[White "Frolik67"]
[Black "josmito10"]
[Result "1/2-1/2"]
[WhiteElo "2410"]
[BlackElo "2408"]
[TimeControl "180+2"]
[EndTime "16:00:11 PST"]
[Termination "Game drawn by stalemate"]

1. e4 {[%clk 0:03:00.4]} 1... c5 {[%clk 0:02:58.9]} 2. Nf3 {[%clk 0:03:01.6]}
2... d6 {[%clk 0:03:00.4]} 3. Bb5+ {[%clk 0:03:00.8]} 3... Nc6 {[%clk
0:03:00.6]} 4. d4 {[%clk 0:03:00.7]} 4... cxd4 {[%clk 0:03:00.6]} 5. Nxd4 {[%clk
0:02:57.7]} 5... Bd7 {[%clk 0:02:59.5]} 6. Nc3 {[%clk 0:02:58.6]} 6... Nf6
{[%clk 0:02:56.5]} 7. O-O {[%clk 0:02:59]} 7... a6 {[%clk 0:02:53.3]} 8. Bc4
{[%clk 0:02:58.8]} 8... Rc8 {[%clk 0:02:49.7]} 9. Bb3 {[%clk 0:02:53.3]} 9...
Na5 {[%clk 0:02:50.1]} 10. Re1 {[%clk 0:02:50.6]} 10... Nxb3 {[%clk 0:02:48.1]}
11. axb3 {[%clk 0:02:52.5]} 11... e6 {[%clk 0:02:48.5]} 12. f4 {[%clk
0:02:31.4]} 12... e5 {[%clk 0:02:31]} 13. Nf5 {[%clk 0:02:24.1]} 13... Bxf5
{[%clk 0:02:20.8]} 14. exf5 {[%clk 0:02:26]} 14... Be7 {[%clk 0:02:21.7]} 15.
fxe5 {[%clk 0:02:24.2]} 15... dxe5 {[%clk 0:02:22.2]} 16. Qxd8+ {[%clk
0:02:24.2]} 16... Rxd8 {[%clk 0:02:22.9]} 17. Rxe5 {[%clk 0:02:25.1]} 17... Rd7
{[%clk 0:02:24.5]} 18. Bg5 {[%clk 0:02:22.3]} 18... O-O {[%clk 0:02:26]} 19.
Rae1 {[%clk 0:02:23.1]} 19... Bd6 {[%clk 0:02:24.9]} 20. Bxf6 {[%clk 0:02:23.6]}
20... gxf6 {[%clk 0:02:21.5]} 21. Rd5 {[%clk 0:02:23.8]} 21... Rfd8 {[%clk
0:02:16.4]} 22. Red1 {[%clk 0:02:20.8]} 22... Bc5+ {[%clk 0:02:14]} 23. Kf1
{[%clk 0:02:19.4]} 23... Rxd5 {[%clk 0:02:15.1]} 24. Rxd5 {[%clk 0:02:18.5]}
24... Rc8 {[%clk 0:02:14.1]} 25. Ne4 {[%clk 0:02:16.4]} 25... Be7 {[%clk
0:02:12.8]} 26. c4 {[%clk 0:02:17.3]} 26... Kf8 {[%clk 0:02:10.5]} 27. Rd7
{[%clk 0:02:03.5]} 27... b5 {[%clk 0:02:09.4]} 28. Rd4 {[%clk 0:01:51.2]} 28...
Rc6 {[%clk 0:01:40.9]} 29. Ke2 {[%clk 0:01:43.9]} 29... Bc5 {[%clk 0:01:40.9]}
30. Rd5 {[%clk 0:01:38.8]} 30... Bg1 {[%clk 0:01:37.8]} 31. cxb5 {[%clk
0:01:37.5]} 31... axb5 {[%clk 0:01:38.2]} 32. h3 {[%clk 0:01:34.6]} 32... b4
{[%clk 0:01:36.6]} 33. Rb5 {[%clk 0:01:31.9]} 33... Rc2+ {[%clk 0:01:37.2]} 34.
Kf3 {[%clk 0:01:32.9]} 34... Bd4 {[%clk 0:01:30]} 35. Rxb4 {[%clk 0:01:32.5]}
35... Be5 {[%clk 0:01:31]} 36. Rb6 {[%clk 0:01:28.2]} 36... Kg7 {[%clk
0:01:28.2]} 37. Nd6 {[%clk 0:01:23.9]} 37... Rxb2 {[%clk 0:01:25.4]} 38. Ne8+
{[%clk 0:01:24.2]} 38... Kh6 {[%clk 0:01:24.7]} 39. Nxf6 {[%clk 0:01:25.1]}
39... Bxf6 {[%clk 0:01:10]} 40. Rxf6+ {[%clk 0:01:27]} 40... Kg5 {[%clk
0:01:11.3]} 41. Rxf7 {[%clk 0:01:25.7]} 41... Rxb3+ {[%clk 0:01:11.6]} 42. Kf2
{[%clk 0:01:25.2]} 42... h5 {[%clk 0:01:12.2]} 43. Rf8 {[%clk 0:01:22.7]} 43...
h4 {[%clk 0:01:10.7]} 44. Kg1 {[%clk 0:01:19.3]} 44... Rb6 {[%clk 0:00:55.6]}
45. Kh2 {[%clk 0:01:18.7]} 45... Rf6 {[%clk 0:00:54.1]} 46. Rg8+ {[%clk
0:00:58.2]} 46... Kxf5 {[%clk 0:00:54.9]} 47. Rh8 {[%clk 0:00:58.7]} 47... Kg5
{[%clk 0:00:54.9]} 48. Rg8+ {[%clk 0:00:59]} 48... Rg6 {[%clk 0:00:55.8]} 49.
Rh8 {[%clk 0:00:59.1]} 49... Rh6 {[%clk 0:00:53.1]} 50. Ra8 {[%clk 0:00:59.6]}
50... Rf6 {[%clk 0:00:53.7]} 51. Ra5+ {[%clk 0:01:00.6]} 51... Rf5 {[%clk
0:00:54.8]} 52. Ra4 {[%clk 0:01:02.3]} 52... Rf4 {[%clk 0:00:56.1]} 53. Ra3
{[%clk 0:01:03.1]} 53... Rf1 {[%clk 0:00:56.5]} 54. Ra5+ {[%clk 0:01:03.3]}
54... Rf5 {[%clk 0:00:57.3]} 55. Ra8 {[%clk 0:01:04.6]} 55... Rf1 {[%clk
0:00:55.5]} 56. Rg8+ {[%clk 0:01:06.1]} 56... Kh5 {[%clk 0:00:56.7]} 57. Rh8+
{[%clk 0:01:07.4]} 57... Kg5 {[%clk 0:00:57.9]} 58. Rg8+ {[%clk 0:01:09.1]}
58... Kh5 {[%clk 0:00:59.3]} 59. Rg4 {[%clk 0:01:10.8]} 59... Re1 {[%clk
0:00:57.6]} 60. Rb4 {[%clk 0:01:11.4]} 60... Rf1 {[%clk 0:00:56.1]} 61. Rb5+
{[%clk 0:01:12.4]} 61... Kg6 {[%clk 0:00:57.3]} 62. Re5 {[%clk 0:01:13.7]} 62...
Rd1 {[%clk 0:00:56.1]} 63. Re2 {[%clk 0:01:14.4]} 63... Kg5 {[%clk 0:00:55.7]}
64. Rf2 {[%clk 0:01:15.6]} 64... Re1 {[%clk 0:00:56.3]} 65. g3 {[%clk 0:01:16]}
65... hxg3+ {[%clk 0:00:56.5]} 66. Kxg3 {[%clk 0:01:17.9]} 66... Re3+ {[%clk
0:00:56.1]} 67. Kg2 {[%clk 0:01:19.1]} 67... Kh6 {[%clk 0:00:53.9]} 68. Rf5
{[%clk 0:01:19.5]} 68... Re6 {[%clk 0:00:48.5]} 69. Kf3 {[%clk 0:01:19.1]} 69...
Kg6 {[%clk 0:00:49.9]} 70. Ra5 {[%clk 0:01:19.9]} 70... Rf6+ {[%clk 0:00:51.5]}
71. Kg4 {[%clk 0:01:21.3]} 71... Rf7 {[%clk 0:00:53.1]} 72. h4 {[%clk
0:01:21.9]} 72... Kh7 {[%clk 0:00:54.6]} 73. Kg5 {[%clk 0:01:21.5]} 73... Rg7+
{[%clk 0:00:56.1]} 74. Kh5 {[%clk 0:01:22]} 74... Rb7 {[%clk 0:00:57.2]} 75. Re5
{[%clk 0:01:21.8]} 75... Rc7 {[%clk 0:00:58.4]} 76. Kg5 {[%clk 0:01:22.7]} 76...
Rb7 {[%clk 0:00:59.6]} 77. h5 {[%clk 0:01:23.9]} 77... Rc7 {[%clk 0:00:58.8]}
78. Kf6 {[%clk 0:01:25.3]} 78... Rc6+ {[%clk 0:00:58.3]} 79. Kg5 {[%clk
0:01:25.6]} 79... Rc7 {[%clk 0:00:59.6]} 80. Rd5 {[%clk 0:01:26.1]} 80... Rb7
{[%clk 0:01:00.5]} 81. Rf5 {[%clk 0:01:25.5]} 81... Ra7 {[%clk 0:01:01.7]} 82.
h6 {[%clk 0:01:26]} 82... Rb7 {[%clk 0:01:02.7]} 83. Rd5 {[%clk 0:01:27]} 83...
Ra7 {[%clk 0:01:04]} 84. Kh5 {[%clk 0:01:28.5]} 84... Rb7 {[%clk 0:01:05.3]} 85.
Rg5 {[%clk 0:01:30.1]} 85... Ra7 {[%clk 0:01:06.6]} 86. Rg3 {[%clk 0:01:31.3]}
86... Ra5+ {[%clk 0:01:06]} 87. Rg5 {[%clk 0:01:32.2]} 87... Rxg5+ {[%clk
0:01:05.7]} 88. Kxg5 {[%clk 0:01:34.1]} 88... Kh8 {[%clk 0:01:05.9]} 89. Kg6
{[%clk 0:01:36]} 89... Kg8 {[%clk 0:01:07.3]} 90. h7+ {[%clk 0:01:37.9]} 90...
Kh8 {[%clk 0:01:08.9]} 91. Kh6 {[%clk 0:01:39.8]} 1/2-1/2

[Event "*** MasterClass Titled Tuesday Blitz"]
[Site "Chess.com"]
[Date "2017.12.05"]
[Round "8"]
[White "ZalupiNputiN"]
[Black "visa"]
[Result "0-1"]
[WhiteElo "2039"]
[BlackElo "2182"]
[TimeControl "180+2"]
[EndTime "16:00:11 PST"]
[Termination "visa won by checkmate"]

1. e4 {[%clk 0:03:01.6]} 1... d6 {[%clk 0:02:59.9]} 2. d4 {[%clk 0:03:01.9]}
2... Nf6 {[%clk 0:03:00.6]} 3. Nc3 {[%clk 0:03:00.7]} 3... Nbd7 {[%clk
0:02:56.8]} 4. f3 {[%clk 0:02:58.8]} 4... e5 {[%clk 0:02:53.5]} 5. Nge2 {[%clk
0:02:57.4]} 5... Be7 {[%clk 0:02:53.1]} 6. Be3 {[%clk 0:02:56.9]} 6... c6 {[%clk
0:02:54.1]} 7. Qd2 {[%clk 0:02:57]} 7... b5 {[%clk 0:02:52.3]} 8. a3 {[%clk
0:02:53.5]} 8... Qc7 {[%clk 0:02:51.8]} 9. d5 {[%clk 0:02:52.8]} 9... a6 {[%clk
0:02:52.8]} 10. dxc6 {[%clk 0:02:43.2]} 10... Qxc6 {[%clk 0:02:53.1]} 11. Ng3
{[%clk 0:02:20.4]} 11... Nb6 {[%clk 0:02:49.5]} 12. Qf2 {[%clk 0:02:13.2]} 12...
Nc4 {[%clk 0:02:48.6]} 13. Nd1 {[%clk 0:01:52.3]} 13... Nxe3 {[%clk 0:02:38.6]}
14. Nxe3 {[%clk 0:01:53.3]} 14... g6 {[%clk 0:02:39.6]} 15. c4 {[%clk
0:01:46.4]} 15... Be6 {[%clk 0:02:34.2]} 16. Rc1 {[%clk 0:01:42.5]} 16... Rb8
{[%clk 0:02:23.9]} 17. Rc2 {[%clk 0:01:28.7]} 17... b4 {[%clk 0:02:23.7]} 18.
Nd5 {[%clk 0:01:27.6]} 18... bxa3 {[%clk 0:02:09.4]} 19. Qa7 {[%clk 0:01:14.6]}
19... Qb7 {[%clk 0:01:30.3]} 20. Qxb7 {[%clk 0:00:44.3]} 20... Rxb7 {[%clk
0:01:30.4]} 21. bxa3 {[%clk 0:00:43.3]} 21... O-O {[%clk 0:01:19.6]} 22. Kf2
{[%clk 0:00:33.6]} 22... Bd8 {[%clk 0:01:13.8]} 23. Ke2 {[%clk 0:00:21.2]} 23...
Nd7 {[%clk 0:00:56.6]} 24. Ne3 {[%clk 0:00:20.6]} 24... Bb6 {[%clk 0:00:49.6]}
25. h4 {[%clk 0:00:20.3]} 25... Rc8 {[%clk 0:00:48.5]} 26. h5 {[%clk 0:00:20]}
26... Rbc7 {[%clk 0:00:38.4]} 27. hxg6 {[%clk 0:00:19.1]} 27... hxg6 {[%clk
0:00:37.4]} 28. Nd5 {[%clk 0:00:18.5]} 28... Bxd5 {[%clk 0:00:34.2]} 29. exd5
{[%clk 0:00:19.8]} 29... Rxc4 {[%clk 0:00:34.9]} 30. Rb2 {[%clk 0:00:19.1]}
30... Rc2+ {[%clk 0:00:32.8]} 31. Rxc2 {[%clk 0:00:19.8]} 31... Rxc2+ {[%clk
0:00:33.5]} 32. Kd3 {[%clk 0:00:21.6]} 32... Ra2 {[%clk 0:00:31.4]} 33. Ne4
{[%clk 0:00:19.8]} 33... Nc5+ {[%clk 0:00:20.1]} 34. Nxc5 {[%clk 0:00:21.3]}
34... Bxc5 {[%clk 0:00:21.2]} 35. Kc3 {[%clk 0:00:15.7]} 35... Rxa3+ {[%clk
0:00:22]} 36. Kb2 {[%clk 0:00:17.4]} 36... a5 {[%clk 0:00:19.9]} 37. Bc4 {[%clk
0:00:17.5]} 37... Re3 {[%clk 0:00:16.8]} 38. Ra1 {[%clk 0:00:17]} 38... Bb4
{[%clk 0:00:17]} 39. Kc2 {[%clk 0:00:17.4]} 39... Rc3+ {[%clk 0:00:17.3]} 40.
Kb2 {[%clk 0:00:17]} 40... Rxc4 {[%clk 0:00:18.3]} 41. Kb3 {[%clk 0:00:18.6]}
41... Rd4 {[%clk 0:00:18.6]} 42. g4 {[%clk 0:00:16.9]} 42... Rxd5 {[%clk
0:00:19.3]} 43. Kc4 {[%clk 0:00:18.1]} 43... Rd4+ {[%clk 0:00:17.5]} 44. Kb5
{[%clk 0:00:19.4]} 44... Rd3 {[%clk 0:00:18]} 45. Kc6 {[%clk 0:00:21]} 45...
Rxf3 {[%clk 0:00:18.4]} 46. Kd7 {[%clk 0:00:21.7]} 46... Rf4 {[%clk 0:00:18.6]}
47. g5 {[%clk 0:00:22.8]} 47... Rg4 {[%clk 0:00:19]} 48. Ke7 {[%clk 0:00:23.3]}
48... Rxg5 {[%clk 0:00:19]} 49. Kf6 {[%clk 0:00:25.1]} 49... Rf5+ {[%clk
0:00:19.4]} 50. Ke7 {[%clk 0:00:26.7]} 50... d5+ {[%clk 0:00:20.6]} 51. Kd7
{[%clk 0:00:24.6]} 51... d4 {[%clk 0:00:21.7]} 52. Re1 {[%clk 0:00:25.4]} 52...
d3 {[%clk 0:00:21.9]} 53. Rb1 {[%clk 0:00:26.2]} 53... d2 {[%clk 0:00:22.6]} 54.
Rd1 {[%clk 0:00:27.5]} 54... e4 {[%clk 0:00:23.8]} 55. Kc6 {[%clk 0:00:28.2]}
55... e3 {[%clk 0:00:24.8]} 56. Kb6 {[%clk 0:00:29.2]} 56... e2 {[%clk
0:00:25.8]} 57. Rb1 {[%clk 0:00:25.8]} 57... Rf1 {[%clk 0:00:24.9]} 58. Rb3
{[%clk 0:00:26.3]} 58... e1=Q {[%clk 0:00:23.9]} 59. Rd3 {[%clk 0:00:27.4]}
59... d1=Q {[%clk 0:00:22.8]} 60. Rd7 {[%clk 0:00:23.9]} 60... Qe6+ {[%clk
0:00:18.8]} 61. Kb5 {[%clk 0:00:22.5]} 61... Qdxd7# {[%clk 0:00:17.8]} 0-1

[Event "*** MasterClass Titled Tuesday Blitz"]
[Site "Chess.com"]
[Date "2017.12.05"]
[Round "8"]
[White "Zkid"]
[Black "Sam_ChessMood"]
[Result "1-0"]
[WhiteElo "2579"]
[BlackElo "2611"]
[TimeControl "180+2"]
[EndTime "16:00:18 PST"]
[Termination "Zkid won by resignation"]

1. e4 {[%clk 0:02:54.6]} 1... c5 {[%clk 0:03:00.3]} 2. Nf3 {[%clk 0:02:55.4]}
2... d6 {[%clk 0:03:01.4]} 3. d4 {[%clk 0:02:56.8]} 3... cxd4 {[%clk 0:03:02.8]}
4. Nxd4 {[%clk 0:02:58.7]} 4... Nf6 {[%clk 0:03:04.2]} 5. Nc3 {[%clk 0:03:00.4]}
5... a6 {[%clk 0:03:05.7]} 6. h3 {[%clk 0:03:00.5]} 6... e5 {[%clk 0:03:05.2]}
7. Nde2 {[%clk 0:03:01.6]} 7... h5 {[%clk 0:03:00.1]} 8. Bg5 {[%clk 0:03:01.5]}
8... Be7 {[%clk 0:03:00.5]} 9. Ng3 {[%clk 0:03:02.2]} 9... g6 {[%clk 0:02:41]}
10. Bc4 {[%clk 0:02:56.2]} 10... Nc6 {[%clk 0:02:33.3]} 11. Nf1 {[%clk 0:02:48]}
11... Na5 {[%clk 0:02:26]} 12. Bb3 {[%clk 0:02:46.5]} 12... Be6 {[%clk
0:02:02.8]} 13. Ne3 {[%clk 0:02:35.5]} 13... Nxb3 {[%clk 0:01:55.4]} 14. axb3
{[%clk 0:02:35.5]} 14... Nxe4 {[%clk 0:01:47.4]} 15. Nxe4 {[%clk 0:02:35.6]}
15... Bxg5 {[%clk 0:01:47.9]} 16. Nxg5 {[%clk 0:02:18.9]} 16... Qxg5 {[%clk
0:01:48.8]} 17. Qxd6 {[%clk 0:02:20.3]} 17... Rd8 {[%clk 0:01:40.3]} 18. Qc5
{[%clk 0:02:08.8]} 18... Rc8 {[%clk 0:01:37.9]} 19. Qd6 {[%clk 0:02:06.4]} 19...
Rc6 {[%clk 0:01:30.3]} 20. Qb8+ {[%clk 0:01:59.9]} 20... Bc8 {[%clk 0:01:31.3]}
21. Ra5 {[%clk 0:01:52.4]} 21... f6 {[%clk 0:01:05.4]} 22. h4 {[%clk 0:01:51.6]}
22... Qf4 {[%clk 0:00:43.7]} 23. Ra4 {[%clk 0:01:47.1]} 23... Qh6 {[%clk
0:00:41.9]} 24. Rc4 {[%clk 0:01:46.9]} 24... Rxc4 {[%clk 0:00:37.9]} 25. bxc4
{[%clk 0:01:48.8]} 25... O-O {[%clk 0:00:37.9]} 26. O-O {[%clk 0:01:46.9]} 26...
g5 {[%clk 0:00:24.6]} 27. Nd5 {[%clk 0:01:33.9]} 27... Qg7 {[%clk 0:00:24.9]}
28. hxg5 {[%clk 0:01:25.6]} 28... fxg5 {[%clk 0:00:26.8]} 29. Re1 {[%clk
0:01:24.6]} 29... e4 {[%clk 0:00:15.9]} 30. Qd6 {[%clk 0:01:10.3]} 30... Bf5
{[%clk 0:00:16.4]} 31. Ne7+ {[%clk 0:01:08.1]} 31... Kh7 {[%clk 0:00:17]} 32.
Nxf5 {[%clk 0:01:08]} 32... Rxf5 {[%clk 0:00:18.9]} 33. Rxe4 {[%clk 0:01:09.1]}
33... Rf7 {[%clk 0:00:13.4]} 34. Qd5 {[%clk 0:01:00]} 34... Re7 {[%clk
0:00:09.4]} 35. Qf5+ {[%clk 0:00:45.2]} 35... Kh6 {[%clk 0:00:10.8]} 36. c3
{[%clk 0:00:40.8]} 36... Rxe4 {[%clk 0:00:11.4]} 37. Qxe4 {[%clk 0:00:42.7]}
37... Qd7 {[%clk 0:00:05.9]} 38. Qd5 {[%clk 0:00:41.3]} 38... Qe7 {[%clk
0:00:06.4]} 39. Kf1 {[%clk 0:00:40.6]} 39... h4 {[%clk 0:00:06.2]} 40. c5 {[%clk
0:00:39.1]} 40... Qh7 {[%clk 0:00:05.7]} 41. Qd6+ {[%clk 0:00:36.3]} 41... Kh5
{[%clk 0:00:05.6]} 42. Qd1+ {[%clk 0:00:35.1]} 42... Kh6 {[%clk 0:00:06.6]} 43.
f3 {[%clk 0:00:30.4]} 43... Qf5 {[%clk 0:00:06.5]} 44. Qd6+ {[%clk 0:00:27.5]}
44... Kh5 {[%clk 0:00:07.8]} 45. Ke2 {[%clk 0:00:27.1]} 45... Qc2+ {[%clk
0:00:08.2]} 46. Qd2 {[%clk 0:00:28.1]} 46... Qb1 {[%clk 0:00:08.4]} 47. b4
{[%clk 0:00:25.6]} 47... Qg1 {[%clk 0:00:08.6]} 48. Kd3 {[%clk 0:00:26.1]} 48...
g4 {[%clk 0:00:08.9]} 49. fxg4+ {[%clk 0:00:24.5]} 49... Kxg4 {[%clk 0:00:10.8]}
50. Qe2+ {[%clk 0:00:26]} 50... Kf4 {[%clk 0:00:09]} 51. Qe4+ {[%clk 0:00:23.3]}
51... Kg5 {[%clk 0:00:08.7]} 52. Kc4 {[%clk 0:00:12]} 52... Qf1+ {[%clk
0:00:08.4]} 53. Kd5 {[%clk 0:00:10.2]} 53... Qc1 {[%clk 0:00:03.8]} 54. c4
{[%clk 0:00:08.1]} 54... Qd2+ {[%clk 0:00:04.4]} 55. Ke6 {[%clk 0:00:08.1]}
55... Qxb4 {[%clk 0:00:05.1]} 56. Qf5+ {[%clk 0:00:09]} 56... Kh6 {[%clk
0:00:06.3]} 57. Qf4+ {[%clk 0:00:09.2]} 57... Kg6 {[%clk 0:00:06.8]} 58. Qg4+
{[%clk 0:00:09.6]} 58... Kh6 {[%clk 0:00:08.2]} 59. Qxh4+ {[%clk 0:00:11]} 59...
Kg6 {[%clk 0:00:09.7]} 60. Qg4+ {[%clk 0:00:12.5]} 60... Kh6 {[%clk 0:00:10.9]}
61. Kf7 {[%clk 0:00:13.9]} 1-0

[Event "*** MasterClass Titled Tuesday Blitz"]
[Site "Chess.com"]
[Date "2017.12.05"]
[Round "8"]
[White "mikhaillushenkov"]
[Black "GeorgMeier"]
[Result "0-1"]
[WhiteElo "2594"]
[BlackElo "2802"]
[TimeControl "180+2"]
[EndTime "16:00:22 PST"]
[Termination "GeorgMeier won by resignation"]

1. Nf3 {[%clk 0:03:01.9]} 1... d6 {[%clk 0:03:01]} 2. d4 {[%clk 0:03:02.3]} 2...
Bg4 {[%clk 0:02:59.9]} 3. e4 {[%clk 0:03:02]} 3... e6 {[%clk 0:02:58.9]} 4. Bd3
{[%clk 0:03:00.4]} 4... Nf6 {[%clk 0:02:59.8]} 5. c4 {[%clk 0:03:00]} 5... Be7
{[%clk 0:02:54.9]} 6. Nc3 {[%clk 0:02:59.8]} 6... e5 {[%clk 0:02:51.7]} 7. d5
{[%clk 0:02:58]} 7... Nfd7 {[%clk 0:02:51]} 8. O-O {[%clk 0:02:52.4]} 8... a5
{[%clk 0:02:40.7]} 9. Nb5 {[%clk 0:02:50.3]} 9... Na6 {[%clk 0:02:39.4]} 10. h3
{[%clk 0:02:44.5]} 10... Bxf3 {[%clk 0:02:39.9]} 11. Qxf3 {[%clk 0:02:46.4]}
11... Bg5 {[%clk 0:02:38.2]} 12. Qg3 {[%clk 0:02:47.3]} 12... h6 {[%clk
0:02:36.4]} 13. b3 {[%clk 0:02:23.2]} 13... O-O {[%clk 0:02:30]} 14. a3 {[%clk
0:02:23.5]} 14... Bxc1 {[%clk 0:01:49.3]} 15. Rfxc1 {[%clk 0:02:25.2]} 15... Qg5
{[%clk 0:01:50.8]} 16. Qf3 {[%clk 0:02:16.8]} 16... g6 {[%clk 0:01:35.2]} 17.
Rc3 {[%clk 0:02:02]} 17... f5 {[%clk 0:01:32.3]} 18. Rb1 {[%clk 0:01:40.1]}
18... Ndc5 {[%clk 0:01:23.2]} 19. Qe2 {[%clk 0:01:33.7]} 19... Kh7 {[%clk
0:00:52.5]} 20. Bc2 {[%clk 0:01:24.5]} 20... Nxe4 {[%clk 0:00:47.8]} 21. Bxe4
{[%clk 0:01:26.4]} 21... fxe4 {[%clk 0:00:49.7]} 22. Qxe4 {[%clk 0:01:27.7]}
22... Rf4 {[%clk 0:00:50.8]} 23. Qe2 {[%clk 0:01:28.1]} 23... Raf8 {[%clk
0:00:50.8]} 24. Rf1 {[%clk 0:01:25]} 24... Qf6 {[%clk 0:00:47.2]} 25. Rg3 {[%clk
0:01:21]} 25... Qf5 {[%clk 0:00:38.5]} 26. Re3 {[%clk 0:01:19.5]} 26... h5
{[%clk 0:00:38.7]} 27. Qd2 {[%clk 0:01:13.7]} 27... b6 {[%clk 0:00:38.2]} 28.
Qe2 {[%clk 0:00:58.5]} 28... Rf7 {[%clk 0:00:39.2]} 29. Nc3 {[%clk 0:00:54.8]}
29... Nc5 {[%clk 0:00:36.4]} 30. Nb5 {[%clk 0:00:43.2]} 30... h4 {[%clk
0:00:26.8]} 31. b4 {[%clk 0:00:35.3]} 31... axb4 {[%clk 0:00:28.7]} 32. axb4
{[%clk 0:00:37.2]} 32... Ne4 {[%clk 0:00:29.9]} 33. Qd3 {[%clk 0:00:10]} 33...
Nxf2 {[%clk 0:00:17.9]} 34. Qxf5 {[%clk 0:00:10.3]} 34... R4xf5 {[%clk
0:00:14.2]} 35. Rc1 {[%clk 0:00:10.8]} 35... Rf4 {[%clk 0:00:13.7]} 36. c5
{[%clk 0:00:05]} 36... dxc5 {[%clk 0:00:14.3]} 37. bxc5 {[%clk 0:00:06.9]} 37...
bxc5 {[%clk 0:00:16.2]} 38. Rxc5 {[%clk 0:00:08]} 38... Ne4 {[%clk 0:00:17.2]}
39. Rxc7 {[%clk 0:00:07.4]} 39... Ng3 {[%clk 0:00:16.7]} 40. Rxf7+ {[%clk
0:00:07.8]} 40... Rxf7 {[%clk 0:00:18.6]} 41. Rf3 {[%clk 0:00:09.1]} 41... Kg7
{[%clk 0:00:17.3]} 42. Kf2 {[%clk 0:00:07.3]} 42... Nf5 {[%clk 0:00:15.6]} 43.
Ke1 {[%clk 0:00:04]} 43... Rd7 {[%clk 0:00:15]} 44. d6 {[%clk 0:00:04.2]} 44...
Kf6 {[%clk 0:00:15]} 45. Rd3 {[%clk 0:00:04.9]} 45... e4 {[%clk 0:00:15.1]} 46.
Rd2 {[%clk 0:00:05.6]} 46... Ke5 {[%clk 0:00:15.7]} 47. Ke2 {[%clk 0:00:06.6]}
47... Nxd6 {[%clk 0:00:15]} 48. Rd1 {[%clk 0:00:05]} 48... Rd8 {[%clk
0:00:13.4]} 49. Nxd6 {[%clk 0:00:05.4]} 49... Rxd6 {[%clk 0:00:14.3]} 50. Ra1
{[%clk 0:00:06.9]} 50... Kf4 {[%clk 0:00:15.2]} 51. Kf1 {[%clk 0:00:04.2]} 51...
Kg3 {[%clk 0:00:15.4]} 52. Ra3+ {[%clk 0:00:04.2]} 52... Rd3 {[%clk 0:00:16.5]}
53. Ra2 {[%clk 0:00:04.6]} 53... Rb3 {[%clk 0:00:16.1]} 54. Rc2 {[%clk
0:00:02.9]} 54... g5 {[%clk 0:00:15.1]} 55. Ra2 {[%clk 0:00:03.2]} 55... Rb1+
{[%clk 0:00:15.5]} 56. Ke2 {[%clk 0:00:04.2]} 56... Kxg2 {[%clk 0:00:17.1]} 57.
Ke3+ {[%clk 0:00:05.6]} 57... Kxh3 {[%clk 0:00:18.5]} 58. Kxe4 {[%clk
0:00:07.5]} 58... g4 {[%clk 0:00:20.1]} 0-1